bitfinex-derivatives/quotes_SOLF0:USTF0_20250329
["timestamp","ask_amount","ask_price","bid_price","bid_amount"]
[1743265775967,17.06868005,126.09,126.08,0.05391931]
[1743265776863,7.9338,126.09,126.08,0.05391931]
[1743265785571,17.06868005,126.09,126.08,0.05391931]
[1743265791279,7.9363,126.05,126.03,19.21438005]
[1743265791478,7.9363,126.05,126.04,28.36]
[1743265792681,7.9952803,126.06,126.04,28.36]
[1743265792874,7.9952803,126.06,126.03,7.99331143]
[1743265793075,7.9952803,126.06,126.04,28.36]
[1743265793677,7.9364,126.05,126.04,28.36]
[1743265796180,7.9952803,126.06,126.04,28.36]
[1743265796379,7.9952803,126.06,126.03,7.99331143]
[1743265796380,9.19416035,126.06,126.03,0.05611143]
[1743265796574,9.13488005,126.04,126.03,0.05611143]
[1743265797878,17.07188005,126.04,126.03,0.05611143]
[1743265798680,9.13488005,126.04,125.96,4.1478]
[1743265798887,9.13488005,126.0,125.97,28.36]
[1743265799284,9.13488005,126.01,125.97,28.36]
[1743265799486,17.07408005,126.01,125.97,28.36]
[1743265799979,0.0549952,126.0,125.98,0.05012753]
[1743265800184,0.0549952,126.0,125.98,7.99082753]
[1743265800387,0.0549952,126.0,125.98,0.05012753]
[1743265800985,7.9944952,126.0,125.98,0.05012753]
[1743265801388,7.9944952,126.0,125.99,28.36]
[1743265802485,17.12937525,126.0,125.98,0.05012753]
[1743265802692,7.9401,125.99,125.98,0.05012753]
[1743265802887,17.07498005,125.99,125.98,0.05012753]
[1743265803187,9.13488005,125.99,125.98,0.05012753]
[1743265803587,9.18987525,126.0,125.98,0.05012753]
[1743265803789,9.18987525,126.0,125.98,36.35082753]
[1743265803790,0.0549952,126.0,125.98,36.35082753]
[1743265804291,7.9944952,126.0,125.98,28.41012753]
[1743265806394,0.0549952,126.0,125.98,36.35082753]
[1743265806593,0.0549952,126.0,125.98,28.41012753]
[1743265807593,7.9945952,126.0,125.98,28.41012753]
[1743265810897,17.12947525,126.0,125.98,28.41012753]
[1743265811197,17.12947525,126.0,125.98,36.35082753]
[1743265811398,0.0549952,126.0,125.98,28.41012753]
[1743265811597,0.0549952,126.0,125.98,37.54500758]
[1743265811787,0.0549952,126.0,125.99,7.9401]
[1743265812597,0.0549952,126.0,125.98,36.35062753]
[1743265812794,9.13488005,125.99,125.98,0.05012753]
[1743265813098,17.07498005,125.99,125.98,0.05012753]
[1743265822496,9.18987525,126.0,125.98,7.99082753]
[1743265822697,0.0549952,126.0,125.99,28.38]
[1743265824303,7.9944952,126.0,125.99,28.38]
[1743265824800,0.0549952,126.0,125.99,28.38]
[1743265825400,0.0549952,126.0,125.99,36.3201]
[1743265826398,9.13488005,126.03,125.99,37.51488005]
[1743265826598,9.13488005,126.04,125.99,37.51488005]
[1743265827198,9.13488005,126.03,125.99,28.38]
[1743265827398,9.13488005,126.01,125.96,9.13488005]
[1743265827602,9.13488005,126.01,126.0,0.05944407]
[1743265827798,9.13488005,126.01,125.95,9.13488005]
[1743265828102,290.06,126.06,125.99,0.05799308]
[1743265828305,7.9405,125.99,125.97,28.38]
[1743265828601,290.06,126.06,126.01,0.06046173]
[1743265828804,290.06,126.06,126.02,6.029e-05]
[1743265829103,0.05807397,126.05,125.97,28.38]
[1743265829304,9.13488005,125.99,125.97,28.38]
[1743265830208,9.18655086,125.99,125.97,28.44030604]
[1743265830410,17.07558005,125.98,125.97,28.44030604]
[1743265830606,17.07558005,125.98,125.97,0.06030604]
[1743265831709,17.07558005,125.98,125.97,0.00045881]
[1743265834504,9.18655086,125.99,125.97,0.00045881]
[1743265834706,0.05167081,125.99,125.97,0.00045881]
[1743265836211,7.99177081,125.99,125.97,0.00045881]
[1743265836407,17.12665086,125.99,125.97,0.00045881]
[1743265836612,9.13488005,125.98,125.97,0.00045881]
[1743265836912,17.07558005,125.98,125.97,0.00045881]
[1743265837310,9.13488005,125.98,125.97,0.00045881]
[1743265838108,9.13488005,125.98,125.97,7.94185881]
[1743265838313,9.18655086,125.99,125.97,7.94185881]
[1743265838515,0.05167081,125.99,125.97,0.00045881]
[1743265838707,9.18655086,125.99,125.97,0.00045881]
[1743265839010,7.9407,125.98,125.97,0.00045881]
[1743265839311,17.07558005,125.98,125.97,0.00045881]
[1743265843710,9.13488005,125.98,125.97,0.00045881]
[1743265843910,0.05167081,125.99,125.97,0.00045881]
[1743265844114,261.68,126.06,125.98,28.38]
[1743265844414,17.07358005,126.02,125.99,7.94]
[1743265844615,9.13488005,126.01,125.98,28.38]
[1743265844914,7.9395,126.0,125.98,36.3207]
[1743265845114,0.05886463,126.0,125.98,36.37475574]
[1743265847013,0.05886463,126.0,125.99,7.9401]
[1743265848517,0.05886463,126.0,125.98,36.37445574]
[1743265849819,17.07498005,125.99,125.98,0.05405574]
[1743265854821,0.05886463,126.0,125.98,0.05405574]
[1743265854822,17.13354468,126.0,125.98,0.05405574]
[1743265855022,0.05886463,126.0,125.98,37.56893579]
[1743265855322,0.05886463,126.0,125.99,9.13488005]
[1743265855717,0.05886463,126.0,125.99,17.07498005]
[1743265857729,7.9373,126.04,126.01,7.9387]
[1743265857927,270.81488005,126.06,126.02,28.38]
[1743265858125,270.81488005,126.06,126.02,37.51488005]
[1743265858935,0.05799933,126.05,126.03,0.05486967]
[1743265860729,7.99429933,126.05,126.03,0.05486967]
[1743265861029,0.05799933,126.05,126.03,7.99236967]
[1743265861623,0.05799933,126.05,126.03,0.05486967]
[1743265861829,7.937,126.04,126.03,0.05486967]
[1743265865137,0.05799933,126.05,126.03,0.05486967]
[1743265865838,0.05799933,126.05,126.03,7.99196967]
[1743265866032,0.05799933,126.05,126.03,0.05486967]
[1743265866232,0.05799933,126.05,126.03,14.32842495]
[1743265866427,276.03355528,126.12,126.03,14.32842495]
[1743265866836,7.9336,126.1,126.06,7.9353]
[1743265867036,7.9336,126.1,126.07,28.36]
[1743265867536,7.99345004,126.1,126.07,28.41521164]
[1743265867732,7.99345004,126.1,126.07,36.35021164]
[1743265867936,0.05985004,126.1,126.07,28.41521164]
[1743265868340,0.05985004,126.1,126.08,7.9341]
[1743265869236,7.99305004,126.1,126.07,36.35001164]
[1743265869629,0.05985004,126.1,126.07,28.41521164]
[1743265869838,7.9341,126.09,126.07,28.41521164]
[1743265870236,0.05985004,126.1,126.07,28.41521164]
[1743265871838,7.9344,126.08,126.07,28.41521164]
[1743265873137,7.9344,126.08,126.07,0.05521164]
[1743265873937,7.934,126.09,126.07,0.05521164]
[1743265874142,0.05985004,126.1,126.07,0.05521164]
[1743265874540,0.05985004,126.1,126.08,7.9344]
[1743265874740,0.05985004,126.1,126.09,28.36]
[1743265875744,0.05985004,126.1,126.09,36.2938]
[1743265877847,16.39285528,126.16,126.09,28.36]
[1743265878844,7.9317,126.13,126.09,28.36]
[1743265879045,7.9317,126.13,126.11,0.05424129]
[1743265879239,7.9317,126.13,126.12,28.36]
[1743265881939,0.05330194,126.14,126.12,28.36]
[1743265882341,0.05330194,126.14,126.12,36.2918]
[1743265883343,0.05330194,126.14,126.13,7.9313]
[1743265886646,261.66,126.18,126.13,7.9313]
[1743265886647,14.27355528,126.2,126.15,7.9296]
[1743265886846,14.27355528,126.2,126.16,28.34]
[1743265887250,7.9271,126.2,126.17,7.9288]
[1743265887440,14.27355528,126.22,126.17,7.9288]
[1743265887646,7.9819127,126.21,126.18,0.05158134]
[1743265887948,0.0553127,126.21,126.19,28.34]
[1743265888343,7.9818127,126.21,126.19,28.34]
[1743265888750,7.9269,126.2,126.19,28.34]
[1743265893555,0.0553127,126.21,126.18,0.05158134]
[1743265893757,14.27355528,126.19,126.15,28.34]
[1743265894651,7.9315,126.13,126.12,28.34]
[1743265894853,9.12249403,126.15,126.12,28.34]
[1743265895053,0.05177719,126.14,126.12,28.34]
[1743265895451,0.05177719,126.14,126.12,28.39389734]
[1743265895957,7.98247719,126.14,126.12,28.39389734]
[1743265896952,0.05177719,126.14,126.12,28.39389734]
[1743265897360,245.94471613,126.22,126.13,14.25167658]
[1743265897555,7.9283,126.18,126.15,7.9298]
[1743265897762,7.9283,126.18,126.16,28.34]
[1743265898262,7.9288,126.17,126.16,28.34]
[1743265898560,7.9288,126.17,126.16,28.39338543]
[1743265899056,7.98815401,126.18,126.16,28.39338543]
[1743265899756,7.9288,126.17,126.16,28.39338543]
[1743265900562,7.98815401,126.18,126.16,28.39338543]
[1743265900962,0.05975401,126.18,126.16,28.39338543]
[1743265901364,0.05975401,126.18,126.16,36.32248543]
[1743265903668,0.05975401,126.18,126.17,7.9288]
[1743265903959,275.83167658,126.24,126.17,14.25167658]
[1743265904153,7.9272,126.2,126.17,22.18027658]
[1743265905154,7.97984716,126.2,126.17,22.23390663]
[1743265907165,0.05264716,126.2,126.17,22.23390663]
[1743265907864,0.05264716,126.2,126.18,7.9281]
[1743265908067,0.05264716,126.2,126.19,28.34]
[1743265909770,0.05264716,126.2,126.19,36.2675]
[1743265910664,14.25167658,126.26,126.21,7.9257]
[1743265910862,14.25167658,126.26,126.22,28.32]
[1743265911664,7.925,126.23,126.22,28.32]
[1743265918868,9.16039896,126.25,126.21,0.05855104]
[1743265919171,9.16039896,126.25,126.21,28.37855104]
[1743265919673,7.9256,126.22,126.21,28.37855104]
[1743265919875,9.16039896,126.25,126.21,28.37855104]
[1743265920169,7.9254,126.23,126.21,28.37855104]
[1743265920374,0.05184137,126.25,126.22,9.10855759]
[1743265921777,7.97584137,126.25,126.22,9.10855759]
[1743265922978,7.9246,126.24,126.22,9.10855759]
[1743265923171,7.9246,126.24,126.21,36.30455104]
[1743265923172,9.10855759,126.24,126.21,28.37855104]
[1743265923878,7.9254,126.23,126.21,28.37855104]
[1743265924275,0.05184137,126.25,126.23,7.9249]
[1743265924575,0.05184137,126.25,126.24,28.32]
[1743265924974,0.05184137,126.25,126.23,28.32]
[1743265925180,9.16039896,126.25,126.23,28.32]
[1743265925774,7.9244,126.24,126.23,28.32]
[1743265926678,9.16039896,126.25,126.23,28.32]
[1743265926879,0.05184137,126.25,126.23,28.32]
[1743265927070,7.9244,126.24,126.23,28.32]
[1743265928870,7.97574137,126.25,126.23,28.32]
[1743265929274,0.05184137,126.25,126.23,28.32]
[1743265929774,0.05184137,126.25,126.23,36.2449]
[1743265931481,7.97564137,126.25,126.23,28.32]
[1743265932181,7.97564137,126.25,126.23,36.245]
[1743265932383,7.97564137,126.25,126.23,28.32]
[1743265934479,0.05184137,126.25,126.23,28.32]
[1743265934885,0.05184137,126.25,126.23,36.2446]
[1743265935886,0.05184137,126.25,126.23,45.35315759]
[1743265936188,0.05184137,126.25,126.24,7.9244]
[1743265936487,9.10855759,126.29,126.24,9.10855759]
[1743265936692,17.03035759,126.29,126.25,7.9234]
[1743265936881,17.03035759,126.29,126.26,28.32]
[1743265937185,7.9219,126.28,126.26,36.2431]
[1743265937586,7.98207147,126.28,126.26,36.29851923]
[1743265938286,7.98207147,126.28,126.26,28.37541923]
[1743265939787,7.98207147,126.28,126.26,36.29841923]
[1743265939987,0.06017147,126.28,126.26,37.48397682]
[1743265940984,0.06017147,126.28,126.27,7.9225]
[1743265941491,0.06017147,126.28,126.27,17.03105759]
[1743265943489,9.10855759,126.35,126.3,7.9201]
[1743265943686,9.10855759,126.35,126.31,28.3]
[1743265944086,7.9184,126.34,126.31,36.2197]
[1743265944283,270.40855759,126.36,126.31,37.40855759]
[1743265944686,7.9186,126.34,126.32,0.05466647]
[1743265945088,7.9187,126.33,126.32,0.05466647]
[1743265949495,17.02725759,126.33,126.32,0.05466647]
[1743265950893,7.9187,126.33,126.32,0.05466647]
[1743265954597,7.9184,126.34,126.32,0.05466647]
[1743265954986,0.05697193,126.35,126.32,0.05466647]
[1743265955392,7.9187,126.34,126.32,0.05466647]
[1743265955593,0.05697193,126.35,126.32,0.05466647]
[1743265955899,7.9187,126.33,126.32,0.05466647]
[1743265956597,17.02725759,126.33,126.32,0.05466647]
[1743265957699,9.10855759,126.33,126.28,28.3]
[1743265957895,9.10855759,126.3,126.28,28.3]
[1743265958096,7.9212,126.29,126.28,28.3]
[1743265960097,7.9219,126.28,126.27,0.05616428]
[1743265960403,17.03045759,126.28,126.27,0.05616428]
[1743265961594,9.10855759,126.29,126.27,0.05616428]
[1743265961799,0.05800621,126.3,126.27,0.05616428]
[1743265961999,0.05800621,126.3,126.28,28.3]
[1743265962199,0.05800621,126.3,126.28,45.33005759]
[1743265963405,7.97860621,126.3,126.28,45.33005759]
[1743265963604,7.97860621,126.3,126.28,36.2215]
[1743265965510,0.05800621,126.3,126.28,36.2215]
[1743265968206,270.40855759,126.36,126.29,9.10855759]
[1743265968408,270.40855759,126.36,126.31,9.10855759]
[1743265968709,7.9187,126.33,126.32,28.3]
[1743265978018,17.08012928,126.34,126.32,28.3]
[1743265979225,7.9187,126.33,126.32,28.3]
[1743265983224,17.02725759,126.33,126.32,28.3]
[1743265983530,17.02725759,126.33,126.31,0.05022997]
[1743265983728,7.9194,126.32,126.31,0.05022997]
[1743265984926,9.10855759,126.32,126.27,28.3]
[1743265985229,9.10855759,126.29,126.27,28.3]
[1743265985419,9.10855759,126.3,126.27,28.3]
[1743265985623,9.10855759,126.28,126.26,28.3]
[1743265986130,7.9225,126.27,126.26,28.35568682]
[1743265988034,7.97703468,126.28,126.26,28.35568682]
[1743265988225,0.05493468,126.28,126.26,37.46424441]
[1743265988428,0.05493468,126.28,126.27,7.9225]
[1743265989031,0.05493468,126.28,126.26,45.38724441]
[1743265989827,0.05493468,126.28,126.26,28.35568682]
[1743265990130,9.16349227,126.28,126.26,28.35568682]
[1743265990332,0.05493468,126.28,126.26,28.35568682]
[1743265990532,0.05493468,126.28,126.26,36.27868682]
[1743265990735,0.05493468,126.28,126.26,37.46424441]
[1743265991132,0.05493468,126.28,126.26,28.35568682]
[1743265991334,7.9225,126.27,126.26,28.35568682]
[1743265996238,17.03105759,126.27,126.26,0.05568682]
[1743265998544,9.10855759,126.27,126.21,7.9259]
[1743265998738,9.10855759,126.25,126.21,45.33445759]
[1743265998932,9.10855759,126.26,126.21,37.40855759]
[1743265999344,7.9241,126.25,126.22,7.9253]
[1743265999738,0.05157946,126.25,126.23,7.9246]
[1743265999944,0.05157946,126.25,126.24,37.40855759]
[1743266000637,0.05157946,126.25,126.24,45.33295759]
[1743266002037,0.05157946,126.25,126.24,28.3]
[1743266005444,0.05157946,126.25,126.24,36.2244]
[1743266006347,7.97537946,126.25,126.24,28.3]
[1743266006544,0.05157946,126.25,126.22,0.05947554]
[1743266006747,0.05157946,126.25,126.23,28.3]
[1743266007143,7.97567946,126.25,126.23,28.3]
[1743266009949,0.05157946,126.25,126.23,37.40855759]
[1743266010148,0.05157946,126.25,126.24,9.10855759]
[1743266010850,0.05157946,126.25,126.24,17.03295759]
[1743266011852,9.16013705,126.25,126.22,0.05947554]
[1743266012053,9.16013705,126.25,126.22,28.35947554]
[1743266012246,9.16013705,126.25,126.22,0.05947554]
[1743266012746,9.16013705,126.25,126.22,28.35947554]
[1743266013852,7.9247,126.24,126.22,28.35947554]
[1743266015055,17.08413705,126.25,126.22,28.35947554]
[1743266015250,7.97557946,126.25,126.22,28.35947554]
[1743266015452,0.05157946,126.25,126.22,28.35947554]
[1743266015653,0.05157946,126.25,126.23,9.10855759]
[1743266016054,0.05157946,126.25,126.24,7.9244]
[1743266016253,0.05157946,126.25,126.23,9.10855759]
[1743266017255,0.05157946,126.25,126.23,17.03305759]
[1743266017455,0.05157946,126.25,126.24,9.10855759]
[1743266017657,0.05157946,126.25,126.23,9.10855759]
[1743266018857,0.05157946,126.25,126.24,7.9244]
[1743266023760,0.05157946,126.25,126.23,7.9247]
[1743266023960,7.97547946,126.25,126.23,7.9247]
[1743266024857,0.05157946,126.25,126.23,7.9247]
[1743266030366,7.97547946,126.25,126.23,7.9247]
[1743266030867,0.05157946,126.25,126.23,7.9247]
[1743266032669,7.97537946,126.25,126.22,36.28487554]
[1743266032969,0.05157946,126.25,126.22,28.35947554]
[1743266033164,0.05157946,126.25,126.23,7.9246]
[1743266034869,0.05157946,126.25,126.23,36.2246]
[1743266036371,0.05157946,126.25,126.24,7.9244]
[1743266038273,0.05157946,126.25,126.23,28.3]
[1743266039170,0.05157946,126.25,126.23,36.225]
[1743266039371,0.05157946,126.25,126.23,28.3]
[1743266039573,0.05157946,126.25,126.23,36.2248]
[1743266041275,7.97537946,126.25,126.23,28.3]
[1743266042376,7.97537946,126.25,126.22,0.05947554]
[1743266042377,9.16013705,126.25,126.22,0.05947554]
[1743266042676,9.10855759,126.23,126.22,0.05947554]
[1743266043876,9.10855759,126.24,126.22,0.05947554]
[1743266044874,17.08433705,126.25,126.22,0.05947554]
[1743266045276,9.16013705,126.25,126.22,7.98507554]
[1743266046475,17.08393705,126.25,126.22,7.98507554]
[1743266049780,0.05157946,126.25,126.22,9.16803313]
[1743266050781,0.05157946,126.25,126.24,7.9244]
[1743266052074,0.05157946,126.25,126.24,36.2244]
[1743266052275,0.05157946,126.25,126.24,45.33295759]
[1743266058190,17.02925759,126.3,126.24,37.40855759]
[1743266058392,9.10855759,126.29,126.25,9.10855759]
[1743266058891,9.10855759,126.29,126.27,7.9224]
[1743266059192,17.02925759,126.3,126.27,36.2224]
[1743266059490,0.05070701,126.29,126.27,36.2793051]
[1743266059891,7.97200701,126.29,126.27,28.3569051]
[1743266061487,0.05070701,126.29,126.27,28.3569051]
[1743266063395,7.97190701,126.29,126.27,28.3569051]
[1743266066790,7.97190701,126.29,126.27,36.2794051]
[1743266068997,0.05070701,126.29,126.27,36.2794051]
[1743266071399,0.05070701,126.29,126.28,7.9219]
[1743266072606,9.10855759,126.33,126.3,7.9204]
[1743266072901,9.10855759,126.33,126.3,36.2204]
[1743266073099,9.10855759,126.35,126.32,7.919]
[1743266073298,270.36855759,126.36,126.32,17.02755759]
[1743266073492,9.10855759,126.36,126.33,28.3]
[1743266073699,17.02505759,126.37,126.33,28.3]
[1743266073900,0.05543004,126.36,126.33,36.27168667]
[1743266074099,0.05543004,126.36,126.33,45.38024426]
[1743266074497,0.05543004,126.36,126.34,7.9179]
[1743266075500,0.05543004,126.36,126.33,45.38014426]
[1743266077701,0.05543004,126.36,126.35,7.9175]
[1743266077898,0.05543004,126.36,126.34,9.10855759]
[1743266078201,0.05543004,126.36,126.34,17.02635759]
[1743266083908,0.05543004,126.36,126.35,9.10855759]
[1743266085710,7.97233004,126.36,126.34,9.10855759]
[1743266086107,0.05543004,126.36,126.34,9.10855759]
[1743266086307,0.05543004,126.36,126.34,17.02655759]
[1743266086607,0.05543004,126.36,126.34,7.918]
[1743266086811,0.05543004,126.36,126.35,9.10855759]
[1743266088715,0.05543004,126.36,126.35,17.02605759]
[1743266089011,3.9449,126.41,126.37,9.10855759]
[1743266089206,3.9449,126.41,126.37,37.38855759]
[1743266089413,270.34855759,126.42,126.37,37.38855759]
[1743266089608,7.9147,126.4,126.38,9.10855759]
[1743266090114,7.96642178,126.4,126.38,9.16175929]
[1743266090708,0.05172178,126.4,126.38,17.07725929]
[1743266091813,7.96612178,126.4,126.38,17.07725929]
[1743266092817,7.96612178,126.4,126.38,9.16175929]
[1743266093016,7.915,126.39,126.38,9.16175929]
[1743266093519,7.915,126.39,126.38,0.0532017]
[1743266093718,17.02355759,126.39,126.38,0.0532017]
[1743266094118,9.10855759,126.39,126.33,9.10855759]
[1743266094321,9.10855759,126.37,126.34,28.26]
[1743266094519,9.10855759,126.37,126.32,9.10855759]
[1743266094816,9.10855759,126.36,126.22,584.62514475]
[1743266095021,9.10855759,126.32,126.25,33.93902233]
[1743266095217,9.10855759,126.31,126.26,38.79057992]
[1743266095518,9.16704794,126.31,126.29,0.06006637]
[1743266095722,7.9206,126.3,126.29,0.06006637]
[1743266097721,0.05849035,126.31,126.29,9.16862396]
[1743266097920,0.05849035,126.31,126.3,37.36855759]
[1743266100124,0.05849035,126.31,126.3,45.28915759]
[1743266101220,9.10855759,126.37,126.31,7.9194]
[1743266101419,9.10855759,126.37,126.32,9.10855759]
[1743266101620,9.10855759,126.37,126.33,28.28]
[1743266102224,7.918,126.35,126.34,0.05114116]
[1743266104720,9.16523703,126.36,126.34,0.05114116]
[1743266104917,0.05667944,126.36,126.34,0.05114116]
[1743266105825,7.9175,126.35,126.34,0.05114116]
[1743266106021,0.05667944,126.36,126.34,0.05114116]
[1743266106228,0.05667944,126.36,126.34,9.15969875]
[1743266106533,7.97387944,126.36,126.34,9.15969875]
[1743266108524,0.05667944,126.36,126.34,9.15969875]
[1743266108733,0.05667944,126.36,126.34,17.07769875]
[1743266109527,7.97367944,126.36,126.34,9.15969875]
[1743266110029,0.05667944,126.36,126.34,9.15969875]
[1743266110233,0.05667944,126.36,126.35,9.10855759]
[1743266110925,0.05667944,126.36,126.35,17.02605759]
[1743266112528,11.09905759,126.43,126.35,9.10855759]
[1743266112836,270.20855759,126.44,126.39,9.10855759]
[1743266113029,9.10855759,126.43,126.4,28.26]
[1743266113229,9.10855759,126.42,126.39,28.26]
[1743266113729,7.914,126.41,126.39,28.32078156]
[1743266115535,7.9143,126.4,126.39,28.32078156]
[1743266116539,7.914,126.41,126.39,28.32078156]
[1743266117540,7.9143,126.4,126.39,0.06078156]
[1743266118635,0.05646932,126.42,126.39,9.16933915]
[1743266118832,0.05646932,126.42,126.41,9.10855759]
[1743266121443,0.05646932,126.42,126.41,17.02225759]
[1743266122243,0.05646932,126.42,126.41,9.10855759]
[1743266122841,7.96996932,126.42,126.4,37.36855759]
[1743266123045,0.05646932,126.42,126.4,28.26]
[1743266123437,7.96986932,126.42,126.4,28.26]
[1743266123640,0.05646932,126.42,126.4,36.1742]
[1743266124246,0.05646932,126.42,126.4,28.26]
[1743266124847,7.96986932,126.42,126.4,28.26]
[1743266125644,7.96986932,126.42,126.4,37.36855759]
[1743266127148,7.9137,126.41,126.4,37.36855759]
[1743266127647,7.96986932,126.42,126.4,37.36855759]
[1743266127948,0.05646932,126.42,126.4,37.36855759]
[1743266129344,0.05646932,126.42,126.4,45.28245759]
[1743266129749,0.05646932,126.42,126.4,37.36855759]
[1743266130050,0.05646932,126.42,126.4,45.28255759]
[1743266130544,0.05646932,126.42,126.4,17.02255759]
[1743266130751,7.96956932,126.42,126.41,28.26]
[1743266132351,0.05646932,126.42,126.41,28.26]
[1743266132551,0.05646932,126.42,126.41,45.28225759]
[1743266134149,11.17835759,126.48,126.44,7.9118]
[1743266134351,11.17835759,126.48,126.45,28.26]
[1743266135051,7.9103,126.47,126.45,28.26]
[1743266135352,7.96570983,126.47,126.45,28.31813667]
[1743266138157,7.9106,126.46,126.45,28.31813667]
[1743266139453,7.96570983,126.47,126.45,28.31813667]
[1743266139951,7.9106,126.46,126.45,28.31813667]
[1743266142356,17.01915759,126.46,126.45,28.31813667]
[1743266142949,17.01915759,126.46,126.45,0.05813667]
[1743266143155,7.9129,126.43,126.4,9.10855759]
[1743266143351,7.9129,126.43,126.41,28.24]
[1743266143747,7.9121,126.44,126.41,28.24]
[1743266144354,0.05248998,126.44,126.41,28.30092255]
[1743266145759,9.10855759,126.43,126.41,0.06092255]
[1743266146056,9.10855759,126.42,126.41,0.06092255]
[1743266146261,7.9161,126.38,126.37,28.36]
[1743266146455,9.10855759,126.38,126.36,28.38]
[1743266146954,7.9166,126.37,126.36,28.38]
[1743266147159,9.10855759,126.38,126.36,28.38]
[1743266147360,9.16583587,126.38,126.36,28.38]
[1743266147659,17.08173587,126.38,126.36,28.38]
[1743266148957,7.97317828,126.38,126.36,28.38]
[1743266149661,0.05727828,126.38,126.36,28.38]
[1743266150862,7.97317828,126.38,126.36,28.38]
[1743266151365,7.97317828,126.38,126.37,28.4]
[1743266155771,7.9163,126.37,126.35,0.06067308]
[1743266155973,7.9163,126.37,126.36,28.38]
[1743266157273,7.9163,126.37,126.36,28.36]
[1743266157771,7.9169,126.36,126.35,0.06067308]
[1743266157972,17.02545759,126.36,126.35,0.06067308]
[1743266160578,7.9165,126.37,126.35,0.06067308]
[1743266161072,7.97317828,126.38,126.35,0.06067308]
[1743266161772,7.9164,126.37,126.35,0.06067308]
[1743266163480,0.05727828,126.38,126.36,37.48855759]
[1743266163682,0.05727828,126.38,126.37,9.10855759]
[1743266164276,0.05727828,126.38,126.37,17.02475759]
[1743266166979,0.05727828,126.38,126.37,9.10855759]
[1743266167780,9.16583587,126.38,126.36,28.38]
[1743266167980,9.10855759,126.37,126.36,28.38]
[1743266168182,7.9169,126.36,126.35,0.06067308]
[1743266168682,9.16583587,126.38,126.35,0.06067308]
[1743266168983,7.9169,126.36,126.35,0.06067308]
[1743266173986,7.9189,126.33,126.32,28.28]
[1743266174690,9.10855759,126.37,126.32,37.38855759]
[1743266174891,11.17285759,126.39,126.35,7.917]
[1743266175189,9.10855759,126.44,126.38,9.10855759]
[1743266175385,9.10855759,126.44,126.39,37.44855759]
[1743266175585,0.05922017,126.41,126.39,37.44855759]
[1743266175889,0.05922017,126.41,126.4,0.05893502]
[1743266177289,9.16777776,126.41,126.4,0.05893502]
[1743266177990,17.08147776,126.41,126.4,0.05893502]
[1743266178997,7.97292017,126.41,126.4,0.05893502]
[1743266179895,0.05922017,126.41,126.4,0.05893502]
[1743266181498,7.97292017,126.41,126.4,0.05893502]
[1743266181992,0.05922017,126.41,126.4,0.05893502]
[1743266183795,7.97292017,126.41,126.4,0.05893502]
[1743266184297,0.05922017,126.41,126.4,0.05893502]
[1743266186297,0.05922017,126.41,126.4,7.97323502]
[1743266186994,0.05922017,126.41,126.4,0.05893502]
[1743266188491,0.05922017,126.41,126.4,7.97323502]
[1743266194303,0.05922017,126.41,126.4,0.05893502]
[1743266195305,0.05922017,126.41,126.35,1.9572]
[1743266195505,14.1967287,126.4,126.36,28.26]
[1743266195705,14.1967287,126.4,126.37,28.26]
[1743266195906,22.1114287,126.4,126.37,28.26]
[1743266196503,7.9151,126.39,126.37,28.31889769]
[1743266196805,14.25185412,126.4,126.37,0.05889769]
[1743266197397,7.915,126.39,126.37,0.05889769]
[1743266198009,0.05512542,126.4,126.37,0.05889769]
[1743266198708,0.05512542,126.4,126.37,7.97489769]
[1743266199603,0.05512542,126.4,126.38,7.9155]
[1743266199802,0.05512542,126.4,126.39,28.26]
[1743266202914,7.96942542,126.4,126.39,28.26]
[1743266203611,0.05512542,126.4,126.39,28.26]
[1743266205107,7.96942542,126.4,126.39,28.26]
[1743266206213,0.05512542,126.4,126.39,28.26]
[1743266208016,0.05512542,126.4,126.39,36.175]
[1743266209214,0.05512542,126.4,126.39,28.26]
[1743266210614,0.05512542,126.4,126.39,36.175]
[1743266211318,0.05512542,126.4,126.39,28.26]
[1743266212620,0.05512542,126.4,126.39,36.175]
[1743266213020,0.05512542,126.4,126.39,28.26]
[1743266214021,7.96942542,126.4,126.39,28.26]
[1743266217219,9.13892167,126.4,126.37,28.31889769]
[1743266217821,7.9153,126.39,126.37,28.31889769]
[1743266218813,7.9153,126.39,126.37,0.05889769]
[1743266221327,0.05512542,126.4,126.38,9.08379625]
[1743266221626,0.05512542,126.4,126.39,28.26]
[1743266223128,0.05512542,126.4,126.39,36.175]